fUSD/lending_fUSD_20240222
["ID","MTS","AMOUNT","RATE_DAILY","PERIOD"]
[314891115,1708623064466,-3839.022951,0.00032877,7]
[314891116,1708623064475,-241.429331,0.00032877,7]
[314891117,1708623064484,-3839.022951,0.00032877,7]
[314891118,1708623064494,-3839.022951,0.00032877,7]
[314891119,1708623064504,-151.0,0.00032877,7]
[314891120,1708623064514,-151.0,0.00032877,7]
[314891121,1708623064524,-151.0,0.00032877,7]
[314891122,1708623064533,-151.0,0.00032877,7]
[314891123,1708623064543,-902.860959,0.00032877,7]
[314891124,1708623064553,-902.860959,0.00032877,7]
[314891125,1708623064562,-902.860959,0.00032877,7]
[314891126,1708623064572,-902.860959,0.00032877,7]
[314891127,1708623064582,-902.860959,0.00032877,7]
[314891128,1708623064592,-902.860959,0.00032877,7]
[314891129,1708623064603,-902.860959,0.00032877,7]
[314891130,1708623064613,-902.860959,0.00032877,7]
[314891131,1708623064623,-154.577582,0.00032877,7]
[314891132,1708623064633,-154.577582,0.00032877,7]
[314891133,1708623064643,-154.577582,0.00032877,7]
[314891134,1708623064654,-154.577582,0.00032877,7]
[314891135,1708623064664,-154.577582,0.00032877,7]
[314891136,1708623064673,-154.577582,0.00032877,7]
[314891137,1708623064683,-162.402414,0.00032877,7]
[314891138,1708623064692,-154.577582,0.00032877,7]
[314891139,1708623064702,-162.402414,0.00032877,7]
[314891140,1708623064712,-154.577582,0.00032877,7]
[314891141,1708623064721,-162.402414,0.00032877,7]
[314891142,1708623064731,-162.402414,0.00032877,7]
[314891143,1708623064740,-151.0,0.00032877,7]
[314891144,1708623064750,-151.0,0.00032877,7]
[314891145,1708623064760,-200.933185,0.00032877,7]
[314891146,1708623064769,-162.402414,0.00032877,7]
[314891147,1708623064779,-162.402414,0.00032877,7]
[314891148,1708623064789,-162.402414,0.00032877,7]
[314891149,1708623064799,-162.402414,0.00032877,7]
[314891150,1708623064808,-518.287492,0.00032877,7]
[314891151,1708623064817,-518.287492,0.00032877,7]
[314891152,1708623064827,-518.287492,0.00032877,7]
[314891153,1708623064836,-518.287492,0.00032877,7]
[314891154,1708623064846,-518.287492,0.00032877,7]
[314891155,1708623064856,-518.287492,0.00032877,7]
[314891156,1708623064866,-518.287492,0.00032877,7]
[314891157,1708623064875,-518.287492,0.00032877,7]
[314891158,1708623064884,-8724.800659,0.00032877,7]
[314891159,1708623064893,-8724.800659,0.00032877,7]
[314891160,1708623064902,-8724.800659,0.00032877,7]
[314891161,1708623064912,-8724.800659,0.00032877,7]
[314891162,1708623064921,-8724.800659,0.00032877,7]
[314891163,1708623064930,-2286.358746,0.00032877,7]
[314891164,1708623064940,-8724.800659,0.00032877,7]
[314891165,1708623064949,-2286.358746,0.00032877,7]
[314891166,1708623064958,-8724.800659,0.00032877,7]
[314891167,1708623064968,-2286.358746,0.00032877,7]
[314891168,1708623064977,-8724.800659,0.00032877,7]
[314891169,1708623064987,-2286.358746,0.00032877,7]
[314891170,1708623064996,-2286.358746,0.00032877,7]
[314891171,1708623065005,-2286.358746,0.00032877,7]
[314891172,1708623065016,-2286.358746,0.00032877,7]
[314891173,1708623065027,-2286.358746,0.00032877,7]
[314891174,1708623065037,-2071.599261,0.00032877,7]
[314891175,1708623065047,-2071.599261,0.00032877,7]
[314891176,1708623065057,-2071.599261,0.00032877,7]
[314891177,1708623065067,-2071.599261,0.00032877,7]
[314891178,1708623065079,-201.852376,0.00032877,7]
[314891179,1708623065091,-201.852376,0.00032877,7]
[314891180,1708623065101,-201.852376,0.00032877,7]
[314891181,1708623065111,-201.852376,0.00032877,7]
[314891182,1708623065121,-2071.599261,0.00032877,7]
[314891183,1708623065131,-2071.599261,0.00032877,7]
[314891184,1708623065143,-151.0,0.00032877,7]
[314891185,1708623065154,-2071.599261,0.00032877,7]
[314891186,1708623065163,-2071.599261,0.00032877,7]
[314891187,1708623065174,-201.852376,0.00032877,7]
[314891188,1708623065185,-151.0,0.00032877,7]
[314891189,1708623065196,-250.0,0.00032877,2]
[314891190,1708623065207,-201.852376,0.00032877,7]
[314891191,1708623065217,-151.0,0.00032877,7]
[314891192,1708623065228,-201.852376,0.00032877,7]
[314891193,1708623065238,-151.0,0.00032877,7]
[314891194,1708623065248,-201.852376,0.00032877,7]
[314891195,1708623065257,-238.597044,0.00032877,7]
[314891196,1708623065267,-238.597044,0.00032877,7]
[314891197,1708623065277,-238.597044,0.00032877,7]
[314891198,1708623065286,-238.597044,0.00032877,7]
[314891199,1708623065296,-151.0,0.00032877,7]
[314891200,1708623065305,-151.0,0.00032877,7]
[314891201,1708623065314,-151.0,0.00032877,7]
[314891202,1708623065325,-151.0,0.00032877,7]
[314891203,1708623065335,-151.0,0.00032877,7]
[314891204,1708623065345,-152.335303,0.00032877,7]
[314891205,1708623065356,-238.597044,0.00032877,7]
[314891206,1708623065366,-238.597044,0.00032877,7]
[314891207,1708623065375,-238.597044,0.00032877,7]
[314891208,1708623065385,-238.597044,0.00032877,7]
[314891209,1708623065395,-443.356414,0.00032877,7]
[314891210,1708623065404,-443.356414,0.00032877,7]
[314891211,1708623065414,-443.356414,0.00032877,7]
[314891212,1708623065423,-443.356414,0.00032877,7]
[314891213,1708623065433,-443.356414,0.00032877,7]
[314891214,1708623065443,-443.356414,0.00032877,7]
[314891215,1708623065453,-443.356414,0.00032877,7]
[314891216,1708623065462,-443.356414,0.00032877,7]
[314891217,1708623065472,-2970.134519,0.00032877,7]
[314891218,1708623065482,-2970.134519,0.00032877,7]
[314891219,1708623065492,-2970.134519,0.00032877,7]
[314891220,1708623065501,-2970.134519,0.00032877,7]
[314891221,1708623065512,-455.024296,0.00032877,7]
[314891222,1708623065522,-455.024296,0.00032877,7]
[314891223,1708623065532,-2970.134519,0.00032877,7]
[314891224,1708623065542,-455.024296,0.00032877,7]
[314891225,1708623065552,-2970.134519,0.00032877,7]
[314891226,1708623065561,-455.024296,0.00032877,7]
[314891227,1708623065570,-2970.134519,0.00032877,7]
[314891228,1708623065580,-2970.134519,0.00032877,7]
[314891229,1708623065590,-455.024296,0.00032877,7]
[314891230,1708623065600,-455.024296,0.00032877,7]
[314891231,1708623065610,-455.024296,0.00032877,7]
[314891232,1708623065620,-455.024296,0.00032877,7]
[314891233,1708623065630,-1058.354836,0.00032877,7]
[314891234,1708623065640,-1058.354836,0.00032877,7]
[314891235,1708623065650,-1058.354836,0.00032877,7]
[314891236,1708623065660,-1058.354836,0.00032877,7]
[314891237,1708623065670,-1058.354836,0.00032877,7]
[314891238,1708623065680,-1058.354836,0.00032877,7]
[314891239,1708623065691,-1058.354836,0.00032877,7]
[314891240,1708623065700,-1058.354836,0.00032877,7]
[314891241,1708623065710,-802.753312,0.00032877,7]
[314891242,1708623065720,-802.753312,0.00032877,7]
[314891243,1708623065729,-802.753312,0.00032877,7]
[314891244,1708623065740,-802.753312,0.00032877,7]
[314891245,1708623065750,-802.753312,0.00032877,7]
[314891246,1708623065760,-802.753312,0.00032877,7]
[314891247,1708623065770,-802.753312,0.00032877,7]
[314891248,1708623065780,-802.753312,0.00032877,7]
[314891249,1708623065790,-151.0,0.00032877,7]
[314891250,1708623065800,-151.0,0.00032877,7]
[314891251,1708623065809,-151.0,0.00032877,7]
[314891252,1708623065819,-151.0,0.00032877,7]
[314891253,1708623065829,-151.0,0.00032877,7]
[314891254,1708623065839,-151.0,0.00032877,7]
[314891255,1708623065849,-151.0,0.00032877,7]
[314891256,1708623065858,-151.0,0.00032877,7]
[314891257,1708623065869,-157.489934,0.00032877,3]
[314891258,1708623065878,-157.489934,0.00032877,3]
[314891259,1708623065888,-157.489934,0.00032877,3]
[314891260,1708623065898,-157.489934,0.00032877,3]
[314891261,1708623065908,-157.489934,0.00032877,3]
[314891262,1708623065918,-157.489934,0.00032877,3]
[314891263,1708623065928,-157.489934,0.00032877,3]
[314891264,1708623065938,-157.489934,0.00032877,3]
[314891265,1708623065949,-220.940986,0.00032877,7]
[314891266,1708623065959,-220.940986,0.00032877,7]
[314891267,1708623065969,-220.940986,0.00032877,7]
[314891268,1708623065979,-220.940986,0.00032877,7]
[314891269,1708623065989,-150.0,0.00032877,30]
[314891270,1708623065999,-151.0,0.00032877,7]
[314891271,1708623066009,-151.0,0.00032877,7]
[314891272,1708623066019,-151.0,0.00032877,7]
[314891273,1708623066029,-151.0,0.00032877,7]
[314891274,1708623066039,-253.502876,0.00032877,7]
[314891275,1708623066049,-253.502876,0.00032877,7]
[314891276,1708623066059,-253.502876,0.00032877,7]
[314891277,1708623066069,-253.502876,0.00032877,7]
[314891278,1708623066079,-253.502876,0.00032877,7]
[314891279,1708623066089,-253.502876,0.00032877,7]
[314891280,1708623066100,-151.0,0.00032877,7]
[314891281,1708623066111,-151.0,0.00032877,7]
[314891282,1708623066121,-151.0,0.00032877,7]
[314891283,1708623066132,-151.0,0.00032877,7]
[314891284,1708623066144,-151.0,0.00032877,7]
[314891285,1708623066155,-151.0,0.00032877,7]
[314891286,1708623066165,-151.0,0.00032877,7]
[314891287,1708623066175,-151.0,0.00032877,7]
[314891288,1708623066187,-151.0,0.00032877,7]
[314891289,1708623066197,-151.0,0.00032877,7]
[314891290,1708623066512,-151.0,0.00032877,7]
[314891291,1708623066523,-191.430544,0.00032877,7]
[314891292,1708623066533,-523.168889,0.00032877,7]
[314891293,1708623066542,-523.168889,0.00032877,7]
[314891294,1708623066552,-523.168889,0.00032877,7]
[314891295,1708623066561,-523.168889,0.00032877,7]
[314891296,1708623066570,-151.0,0.00032877,7]
[314891297,1708623066580,-151.0,0.00032877,7]
[314891298,1708623066590,-151.0,0.00032877,7]
[314891299,1708623066599,-151.0,0.00032877,7]
[314891300,1708623066612,-151.0,0.00032877,7]
[314891301,1708623066621,-151.0,0.00032877,7]
[314891302,1708623066631,-333.06456,0.00032877,7]
[314891303,1708623066641,-333.06456,0.00032877,7]
[314891304,1708623066650,-333.06456,0.00032877,7]
[314891305,1708623066660,-333.06456,0.00032877,7]
[314891306,1708623066670,-151.0,0.00032877,7]
[314891307,1708623066679,-151.0,0.00032877,7]
[314891308,1708623066688,-359.108159,0.00032877,7]
[314891309,1708623066698,-359.108159,0.00032877,7]
[314891310,1708623066708,-153.620429,0.00032877,7]
[314891311,1708623066717,-359.108159,0.00032877,7]
[314891312,1708623066727,-359.108159,0.00032877,7]
[314891313,1708623066737,-151.0,0.00032877,7]
[314891314,1708623066747,-151.0,0.00032877,7]
[314891315,1708623066758,-699.889603,0.00032877,7]
[314891316,1708623066768,-699.889603,0.00032877,7]
[314891317,1708623066778,-699.889603,0.00032877,7]
[314891318,1708623066788,-699.889603,0.00032877,7]
[314891319,1708623066800,-907.974021,0.00032877,7]
[314891320,1708623066811,-907.974021,0.00032877,7]
[314891321,1708623066821,-907.974021,0.00032877,7]
[314891322,1708623066831,-907.974021,0.00032877,7]
[314891323,1708623066840,-232.46611,0.00032877,7]
[314891324,1708623066852,-232.46611,0.00032877,7]
[314891325,1708623066862,-2340.80178,0.00032877,7]
[314891326,1708623066872,-2340.80178,0.00032877,7]
[314891327,1708623066881,-232.46611,0.00032877,7]
[314891328,1708623066891,-232.46611,0.00032877,7]
[314891329,1708623066901,-2340.80178,0.00032877,7]
[314891330,1708623066910,-2340.80178,0.00032877,7]
[314891331,1708623066920,-160.590461,0.00032877,7]
[314891332,1708623066930,-160.590461,0.00032877,7]
[314891333,1708623066939,-151.0,0.00032877,7]
[314891334,1708623066949,-151.0,0.00032877,7]
[314891335,1708623066959,-160.590461,0.00032877,7]
[314891336,1708623066968,-160.590461,0.00032877,7]
[314891337,1708623066979,-532.483784,0.00032877,7]
[314891338,1708623066990,-532.483784,0.00032877,7]
[314891339,1708623067000,-532.483784,0.00032877,7]
[314891340,1708623067010,-532.483784,0.00032877,7]
[314891341,1708623067020,-185.027475,0.00032877,7]
[314891342,1708623067029,-185.027475,0.00032877,7]
[314891343,1708623067038,-185.027475,0.00032877,7]
[314891344,1708623067047,-185.027475,0.00032877,7]
[314891345,1708623067057,-448.220703,0.00032877,7]
[314891346,1708623067067,-448.220703,0.00032877,7]
[314891347,1708623067077,-151.0,0.00032877,7]
[314891348,1708623067086,-151.0,0.00032877,7]
[314891349,1708623067096,-448.220703,0.00032877,7]
[314891350,1708623067106,-448.220703,0.00032877,7]
[314891351,1708623067115,-151.0,0.00032877,7]
[314891352,1708623067124,-151.0,0.00032877,7]
[314891353,1708623067133,-1738.159296,0.00032877,7]
[314891354,1708623067146,-1738.159296,0.00032877,7]
[314891355,1708623067155,-151.0,0.00032877,7]
[314891356,1708623067164,-151.0,0.00032877,7]
[314891357,1708623067174,-1738.159296,0.00032877,7]
[314891358,1708623067185,-1738.159296,0.00032877,7]
[314891359,1708623067194,-910.004019,0.00032877,7]
[314891360,1708623067204,-910.004019,0.00032877,7]
[314891361,1708623067213,-151.0,0.00032877,7]
[314891362,1708623067223,-151.0,0.00032877,7]
[314891363,1708623067233,-910.004019,0.00032877,7]
[314891364,1708623067242,-910.004019,0.00032877,7]
[314891365,1708623067251,-151.0,0.00032877,7]
[314891366,1708623067261,-152.06663,0.00032877,7]
[314891367,1708623067270,-151.0,0.00032877,7]
[314891368,1708623067280,-151.0,0.00032877,7]
[314891369,1708623067289,-1026.839955,0.00032877,7]
[314891370,1708623067299,-1026.839955,0.00032877,7]
[314891371,1708623067308,-1026.839955,0.00032877,7]
[314891372,1708623067317,-1026.839955,0.00032877,7]
[314891373,1708623067327,-151.0,0.00032877,7]
[314891374,1708623067336,-151.0,0.00032877,7]
[314891375,1708623067345,-766.684771,0.00032877,7]
[314891376,1708623067355,-766.684771,0.00032877,7]
[314891377,1708623067364,-176.248263,0.00032877,7]
[314891378,1708623067374,-176.248263,0.00032877,7]
[314891379,1708623067388,-766.684771,0.00032877,7]
[314891380,1708623067397,-766.684771,0.00032877,7]
[314891381,1708623067407,-176.248263,0.00032877,7]
[314891382,1708623067416,-176.248263,0.00032877,7]
[314891383,1708623067426,-522.961341,0.00032877,7]
[314891384,1708623067435,-522.961341,0.00032877,7]
[314891385,1708623067445,-522.961341,0.00032877,7]
[314891386,1708623067454,-306.56891584,0.00032877,7]
[314891388,1708623069982,-250.0,0.000319,2]
[314891389,1708623069993,-1049.04,0.00032753,2]
[314891390,1708623070002,-412.24606678,0.00032876,2]
[314891391,1708623070151,-1147.27284638,0.00032061,2]
[314891392,1708623070162,-83.72715362,0.00032061,2]
[314891393,1708623070171,-250.0,0.00032174,2]
[314891394,1708623070181,-557.80136143,0.00032875,2]
[314891395,1708623070190,-87.75393322,0.00032876,2]
[314891396,1708623070199,-121.18555189,0.00032876,2]
[314891397,1708623070211,-378.81444811,0.00032876,2]
[314891398,1708623070221,-798.19,0.00032876,2]
[314891399,1708623070231,-405.50180697,0.00032876,2]
[314891400,1708623070261,-94.49819303,0.00032876,2]
[314891401,1708623070270,-4122.55,0.00032876,2]
[314891402,1708623070279,-151.0,0.00032877,7]
[314891403,1708623070288,-151.0,0.00032877,7]
[314891404,1708623070298,-151.0,0.00032877,7]
[314891405,1708623070307,-220.940986,0.00032877,7]
[314891406,1708623070316,-151.0,0.00032877,7]
[314891407,1708623070326,-220.940986,0.00032877,7]
[314891408,1708623070335,-220.940986,0.00032877,7]
[314891409,1708623070344,-220.940986,0.00032877,7]
[314891410,1708623070353,-216.39242516,0.00032877,7]
[314891411,1708623070364,-541.156258,0.00032877,2]
[314891412,1708623070373,-541.156258,0.00032877,2]
[314891413,1708623070382,-541.156258,0.00032877,2]
[314891414,1708623070391,-541.156258,0.00032877,2]
[314891415,1708623070400,-151.0,0.00032877,7]
[314891416,1708623070409,-151.0,0.00032877,7]
[314891417,1708623070419,-151.0,0.00032877,7]
[314891418,1708623070428,-415.092905,0.00032877,7]
[314891419,1708623070437,-151.0,0.00032877,7]
[314891420,1708623070446,-415.092905,0.00032877,7]
[314891421,1708623070455,-274.802938,0.00032877,7]
[314891422,1708623070465,-415.092905,0.00032877,7]
[314891423,1708623070474,-415.092905,0.00032877,7]
[314891424,1708623070483,-151.0,0.00032877,7]
[314891425,1708623070492,-151.0,0.00032877,7]
[314891426,1708623070501,-186.804569,0.00032877,7]
[314891427,1708623070510,-186.804569,0.00032877,7]
[314891428,1708623070520,-186.804569,0.00032877,7]
[314891429,1708623070530,-186.804569,0.00032877,7]
[314891430,1708623070539,-256.815667,0.00032877,7]
[314891431,1708623070548,-256.815667,0.00032877,7]
[314891432,1708623070557,-256.815667,0.00032877,7]
[314891433,1708623070567,-256.815667,0.00032877,7]
[314891434,1708623070576,-253.89827,0.00032877,7]
[314891435,1708623070585,-253.89827,0.00032877,7]
[314891436,1708623070594,-253.89827,0.00032877,7]
[314891437,1708623070603,-253.89827,0.00032877,7]
[314891438,1708623070613,-185.537286,0.00032877,7]
[314891439,1708623070622,-185.537286,0.00032877,7]
[314891440,1708623070631,-151.0,0.00032877,7]
[314891441,1708623070641,-151.0,0.00032877,7]
[314891442,1708623070650,-185.537286,0.00032877,7]
[314891443,1708623070659,-185.537286,0.00032877,7]
[314891444,1708623070667,-151.0,0.00032877,7]
[314891445,1708623070677,-151.0,0.00032877,7]
[314891446,1708623070685,-2728.11351043,0.00032877,7]
[314891447,1708623070706,-250.75162133,0.00032877,7]
[314891448,1708623070718,-814.27626124,0.00032877,7]
[314891449,1708623070727,-679.22373876,0.00032877,7]
[314891450,1708623084093,155.0,0.00025963,2]
[314891451,1708623801162,394.54327871,0.0002702,7]
[314891452,1708623995046,508.67,0.00026266,2]
[314891454,1708624072884,155.0,0.00027233,2]
[314891455,1708624074937,-2000.0,0.00027234,2]
[314891456,1708624075538,-2000.0,0.00027234,2]
[314891457,1708624076113,-2000.0,0.00027234,2]
[314891458,1708624076741,-2000.0,0.00027234,2]
[314891459,1708624077314,-2000.0,0.00027234,2]
[314891460,1708624077927,-63.385557,0.00027234,2]
[314891466,1708624231769,-155.0,0.00027365,2]
[314891467,1708624231778,-228.14260203,0.00027366,2]
[314891468,1708624231843,-187.02098269,0.00027366,2]
[314891469,1708624231853,-155.0,0.00027367,2]
[314891470,1708624231862,-179.37,0.00028029,2]
[314891471,1708624231871,-164.06564083,0.00028084,2]
[314891472,1708624231881,-763.55,0.00028093,2]
[314891473,1708624231890,-309.42,0.000281,2]
[314891474,1708624231899,-11348.82,0.00028106,2]
[314891475,1708624231909,-1339.23,0.00028123,2]
[314891476,1708624231919,-200.0,0.00028184,2]
[314891477,1708624231928,-250.0,0.00028208,2]
[314891478,1708624231938,-200.0,0.00028219,2]
[314891479,1708624231947,-177.69,0.00028478,2]
[314891480,1708624231957,-185.94,0.00028516,2]
[314891481,1708624231966,-595.15,0.0002853,2]
[314891482,1708624231975,-508.67,0.0002853,2]
[314891483,1708624231985,-764.75532436,0.00028577,2]
[314891484,1708624231994,-2000.0,0.00028644,2]
[314891485,1708624232004,-150.0,0.00028658,2]
[314891486,1708624232013,-185.94,0.00028666,2]
[314891487,1708624232022,-23900.0,0.00028684,2]
[314891488,1708624232031,-500.0,0.00028737,2]
[314891489,1708624232041,-250.0,0.00028786,2]
[314891490,1708624232050,-185.94,0.00028816,2]
[314891491,1708624232059,-185.94,0.00028966,2]
[314891492,1708624232069,-177.69,0.00029026,2]
[314891493,1708624232078,-2368.0,0.00029109,2]
[314891494,1708624232087,-185.94,0.00029116,2]
[314891495,1708624232098,-170.89,0.00029153,2]
[314891496,1708624232108,-1535.95,0.00029153,2]
[314891497,1708624232117,-236.45,0.00029264,2]
[314891498,1708624232126,-185.94,0.00029266,2]
[314891500,1708624232135,-465.41,0.00029352,2]
[314891503,1708624232145,-185.94,0.00029416,2]
[314891505,1708624232154,-300.0,0.00029475,2]
[314891508,1708624232164,-100000.0,0.00029478,2]
[314891511,1708624232173,-69.09770748,0.00029478,2]
[314891514,1708624232193,-306.58559252,0.00029478,2]
[314891516,1708624232202,-59.28729354,0.00029478,2]
[314891519,1708624232214,-440.71270646,0.00029478,2]
[314891521,1708624232224,-427.6409,0.00029478,2]
[314891522,1708624232233,-1934.5766,0.00029478,2]
[314891523,1708624232242,-185.94,0.00029566,2]
[314891524,1708624232251,-177.69,0.00029574,2]
[314891526,1708624232261,-316.33036581,0.00029577,15]
[314891527,1708624232270,-330.24349274,0.00029577,15]
[314891529,1708624232279,-229.83924677,0.00029577,2]
[314891531,1708624232288,-11140.96669213,0.00029578,2]
[314891534,1708624232309,-1197.54386315,0.00029578,2]
[314891535,1708624232438,-3436.72095758,0.00029578,2]
[314891536,1708624232450,-384.86813329,0.00029578,2]
[314891537,1708624232461,-303.77486671,0.00029578,2]
[314891538,1708624232475,-700.0,0.00029578,2]
[314891539,1708624232489,-822.4331913,0.00029578,2]
[314891540,1708624232501,-2514.22406613,0.00029578,2]
[314891541,1708624232513,-7081.04461949,0.00029578,2]
[314891542,1708624232537,-69064.9328809,0.00029578,2]
[314891552,1708624237824,-363.61901928,0.00029478,2]
[314891553,1708624237837,-444.90668354,0.00029478,2]
[314891554,1708624237866,-876.54342829,0.00029478,2]
[314891555,1708624238827,-343.36644218,0.00029478,2]
[314891556,1708624238841,-846.249995,0.00029478,2]
[314891557,1708624238890,-97125.31443171,0.00029478,2]
[314891558,1708624238901,-148353.49072932,0.00029578,2]
[314891559,1708624238912,-352.7045,0.00029578,2]
[314891560,1708624238922,-185.94,0.00029716,2]
[314891561,1708624238934,-1339.23,0.00029767,2]
[314891562,1708624238945,-5004.84,0.00029815,2]
[314891563,1708624238955,-4685.88,0.00029815,2]
[314891564,1708624238965,-3017.35,0.00029815,2]
[314891565,1708624238976,-2826.59,0.00029815,2]
[314891566,1708624238986,-185.94,0.00029867,2]
[314891567,1708624238996,-165.44,0.00029936,2]
[314891568,1708624239006,-154.0433466,0.0002999,2]
[314891570,1708624239016,-541.93683605,0.00029999,2]
[314891572,1708624239027,-238.3494545,0.00029999,2]
[314891574,1708624239037,-312.78337604,0.0003,4]
[314891576,1708624239047,-295673.36525965,0.0003,2]
[314891578,1708624239057,-185.94,0.00030017,2]
[314891580,1708624239067,-177.69,0.00030122,2]
[314891582,1708624239077,-185.94,0.00030167,2]
[314891585,1708624239087,-185.94,0.00030317,2]
[314891587,1708624239097,-185.94,0.00030467,2]
[314891589,1708624239106,-16853.0,0.000305,2]
[314891591,1708624239117,-3435.53354441,0.00030573,2]
[314891593,1708624239127,-185.94,0.00030617,2]
[314891595,1708624239138,-373.86655683,0.00030655,5]
[314891597,1708624239148,-177.69,0.0003067,2]
[314891599,1708624239158,-369.0,0.00030749,2]
[314891601,1708624239168,-185.94,0.00030767,2]
[314891603,1708624239178,-508.67,0.00030794,2]
[314891605,1708624239189,-200.0,0.000308,3]
[314891608,1708624239198,-206.62708807,0.00030817,2]
[314891610,1708624239209,-179.37,0.00030832,2]
[314891612,1708624239219,-152.98,0.00030855,2]
[314891614,1708624239228,-412.51068012,0.00030879,2]
[314891616,1708624239239,-185.98114424,0.00030879,2]
[314891618,1708624239248,-181.81600446,0.00030879,2]
[314891620,1708624239258,-272811.54777745,0.0003088,4]
[314891622,1708624239272,-1893.94664998,0.0003088,4]
[314891625,1708624239284,-883.00878478,0.0003088,4]
[314891627,1708624239297,-891510.6271321,0.0003088,4]
[314891629,1708624239307,-1574673.48174837,0.0003088,2]
[314891632,1708624239319,-306156.80026283,0.0003088,2]
[314891647,1708624239456,-113729.69275627,0.0003088,2]
[314891660,1708624239573,-1138.0,0.0003088,2]
[314891662,1708624239586,-5217.472233,0.0003088,2]
[314891774,1708624240870,-316.59625256,0.0003088,2]
[314891777,1708624241291,-537551.09355457,0.0003088,2]
[314891791,1708624241962,-297.27599253,0.0003088,2]
[314891792,1708624241973,-1500.0,0.0003088,2]
[314891802,1708624242929,-412.44943624,0.00030879,2]
[314891803,1708624242939,-30596.92120198,0.0003088,2]
[314891806,1708624245914,-164.57168051,0.00030879,4]
[314891807,1708624245926,-9245.95099646,0.0003088,2]
[314891808,1708624245938,-185.94,0.00030917,2]
[314891809,1708624245952,-153.98,0.0003094,2]
[314891810,1708624245964,-155.0,0.00030979,2]
[314891811,1708624245977,-185.94,0.00031067,2]
[314891812,1708624245988,-185.94,0.00031217,2]
[314891813,1708624246000,-177.69,0.00031218,2]
[314891814,1708624246012,-373.86655683,0.00031244,5]
[314891815,1708624246024,-185.94,0.00031367,2]
[314891816,1708624246036,-204.0,0.0003139,2]
[314891817,1708624246047,-1339.23,0.00031411,2]
[314891818,1708624246059,-151.50220252,0.0003146,2]
[314891819,1708624246070,-528.67239776,0.00031505,2]
[314891821,1708624246082,-19749.98366582,0.00031512,2]
[314891845,1708624246438,-15262.44797476,0.00031512,2]
[314891849,1708624973784,432.36,0.00026897,2]
[314891862,1708625431912,-155.0,0.0002831,2]
[314891863,1708625431921,-235.03158511,0.00028311,2]
[314891864,1708625432177,-2814.20281832,0.00028311,2]
[314891865,1708625432187,-789.87,0.00028312,2]
[314891866,1708625432196,-2000.0,0.00028312,2]
[314891867,1708625432205,-181.65,0.00028312,2]
[314891868,1708625432214,-250.0,0.00028355,2]
[314891869,1708625432224,-353.51,0.00028478,2]
[314891870,1708625432233,-158.55805009,0.00028677,2]
[314891871,1708625432243,-179.37,0.00028709,2]
[314891872,1708625432252,-155.0,0.0002872,2]
[314891873,1708625432261,-154.71,0.00028722,2]
[314891874,1708625432270,-610.84,0.00028766,2]
[314891875,1708625432280,-1628.85,0.00028768,2]
[314891876,1708625432289,-250.0,0.00028789,2]
[314891877,1708625432299,-162.12,0.00028803,2]
[314891878,1708625432308,-158.55805005,0.00028817,2]
[314891879,1708625432317,-158.55805005,0.00028958,2]
[314891880,1708625432327,-170.89,0.00029022,2]
[314891881,1708625432336,-1279.95,0.00029075,2]
[314891882,1708625432346,-158.55805005,0.00029098,2]
[314891883,1708625432355,-158.55805005,0.00029239,2]
[314891884,1708625432365,-158.55805005,0.00029379,2]
[314891886,1708625432375,-389.16,0.00029407,2]
[314891887,1708625432386,-29925.34000143,0.00029478,2]